{"text_format":"1","workbook":"xlsx","n_sheets":3,"sheets":["鉄筋引張","鉄筋引張 (2)","鉄筋引張 (3)"],"not_rendered":{"charts":0,"images":3,"macros":1,"external_links":0,"defined_names":23,"comments":0,"pivot_tables":0},"unopened":[],"bounds":{"document_bytes":16777216,"sheet_cells":100000,"rows_first":2000,"rows_last":500,"rows_between":2000,"halvings":0,"cell_chars":16384,"cell_head_chars":4096},"cells_cut":0,"cells_raw":0,"read":"whole","date_system":"1900"}

{"sheet":"鉄筋引張","index":0,"n_rows":39,"n_cols":39,"rows_kept":39,"cut":false,"hidden":false,"merged":[[26,32,28,35],[14,30,14,35],[18,17,18,18],[18,21,18,24],[18,25,18,26],[19,5,19,28],[16,17,16,18],[16,20,16,21],[16,22,16,23],[17,5,17,28],[16,25,16,28],[16,15,16,16],[14,5,14,16],[14,17,14,28],[15,17,15,28],[15,5,15,16],[16,0,17,4],[16,5,16,6],[16,7,16,8],[16,10,16,11],[16,12,16,13],[11,5,11,28],[12,0,12,4],[12,5,12,28],[6,0,11,1],[6,2,7,4],[6,6,6,9],[8,2,8,4],[6,18,6,28],[7,5,7,28],[8,5,8,28],[9,2,9,4],[10,2,10,4],[10,7,10,12],[10,5,10,6],[1,0,1,17],[18,0,18,4],[11,2,11,4],[13,0,13,4],[13,5,13,28],[1,18,1,22],[2,18,2,22],[1,23,1,24],[4,0,4,16],[1,25,1,28],[2,23,2,28],[10,13,10,14],[9,5,9,28],[10,15,10,20],[14,0,14,4],[15,0,15,4],[35,25,35,28],[21,5,21,28],[34,25,34,28],[18,13,18,16],[24,5,24,11],[34,21,34,24],[23,5,23,11],[24,12,24,28],[22,12,22,28],[32,5,32,19],[31,5,31,19],[30,5,30,19],[29,5,29,19],[18,5,18,12],[15,30,16,38],[11,30,11,33],[29,30,30,37],[19,0,19,4],[35,0,35,4],[35,5,35,13],[35,21,35,24],[25,20,32,28],[22,5,22,11],[20,0,20,4],[20,5,20,28],[23,0,23,4],[24,0,24,4],[21,0,21,4],[22,0,22,4],[29,0,32,4]]}
[null,null,null,null,null,null,null,null,null,null,null,null,null,null,null,null,null,null,null,null,null,null,null,null,null,null,null,null,null,null,null,null,null,null,null,null,null,null,"000-0000\r\n福井県○○市○○町1-1-1\r\n○○工業株式会社\r\n○○　○○\r\n0000-00-0000\r\n0000-00-0000\r\n○○工業株式会社\r\n○○建設　新築工事\r\n福井市○○町○○－○○\r\n鉄筋のガス圧接継手\r\nSD345\r\nD25\r\n\r\n-\r\n\r\n-\r\n\r\n-\r\n\r\n2024/01/01\r\n基礎・地中梁\r\n―\r\n無\r\n無\r\n"]
["金属材料引張試験依頼書",null,null,null,null,null,null,null,null,null,null,null,null,null,null,null,null,null,"受 付 番 号"]
[null,null,null,null,null,null,null,null,null,null,null,null,null,null,null,null,null,null,"受領日"]
[]
["福井県生コンクリート工業組合　中央試験場　　御中"]
["【依頼者記入欄】"]
["依頼者",null,"住所",null,null,"〒","000-0000",null,null,null,null,null,null,null,null,null,null,null,null,null,null,null,null,null,null,null,null,null,null,null,null,null,null,"　"]
[null,null,null,null,null,"福井県○○市○○町1-1-1",null,null,null,null,null,null,null,null,null,null,null,null,null,null,null,null,null,null,null,null,null,null,null,null,"※依頼書の作成方法"]
[null,null,"会社名",null,null,"○○工業株式会社",null,null,null,null,null,null,null,null,null,null,null,null,null,null,null,null,null,null,null,null,null,null,null,null,"この依頼書はマクロを使用しています。「マクロを有効」にしてください。"]
[null,null,"担当者",null,null,"○○　○○",null,null,null,null,null,null,null,null,null,null,null,null,null,null,null,null,null,null,null,null,null,null,null,null,"※（「マクロの有効」ファイル(HPよりDL)をご参考にしてください）"]
[null,null,"連絡先",null,null,"℡",null,"0000-00-0000",null,null,null,null,null,"fax",null,"0000-00-0000",null,null,null,null,null,null,null,null,null,null,null,null,null,null,"注）セル及び行列の追加削除及び移動は行わないでください。"]
[null,null,"請求先",null,null,"○○工業株式会社",null,null,null,null,null,null,null,null,null,null,null,null,null,null,null,null,null,null,null,null,null,null,null,null,"依頼書内の白枠セルへ入力してください。\n入力漏れの無いようお願いします。\n"]
["工事名",null,null,null,null,"○○建設　新築工事"]
["工事場所",null,null,null,null,"福井市○○町○○－○○",null,null,null,null,null,null,null,null,null,null,null,null,null,null,null,null,null,null,null,null,null,null,null,null,"※該当しない項目または無記入欄は、「―」にしてください。"]
["試験項目",null,null,null,null,"鉄筋のガス圧接継手",null,null,null,null,null,null,null,null,null,null,null,"引張試験方法　",null,null,null,null,null,null,null,null,null,null,null,null,"　　　リストから選択してください。直接入力もできます。"]
["鉄筋の種類",null,null,null,null,"SD345",null,null,null,null,null,null,null,null,null,null,null,{"$f":"IF(F16=\"SD490\",\"※SD490はD32までとなります\",\"\")","v":""},null,null,null,null,null,null,null,null,null,null,null,null,"※鉄筋の種類は1種類を選択してください。複数の場合は依頼書を追加していただきます。\n（鉄筋径が異なる鉄筋間の継手は、鉄筋径の差が７㎜までです。その際は「D19+D25]\nと依頼書を作成してください。）"]
["試料名及び数量",null,null,null,null,"D22",null,null,null,"本","-",null,null,null,"本","-",null,null,null,"本","-",null,null,null,"本",{"$f":"IF((H17+M17+R17+W17>9),\"9本までです\",\"\")","v":""}]
[null,null,null,null,null,"※サイズはD38まで試験可能です。試料数は依頼書/1枚につき合計９本までとなります",null,null,null,null,null,null,null,null,null,null,null,null,null,null,null,null,null,null,null,null,null,null,null,null,"※試料は、継手をセンターにし全長500～1000mmに加工しお持ちください。"]
["試験方法",null,null,null,null,"JIS Z 2241：2022",null,null,null,null,null,null,null,"(080C01)",null,null,null,{"$f":"SUM(AE34:AH34)","v":0},null,null,null,"(080C02)",null,null,null,{"$f":"SUM(AE35:AH35)","v":0},null,null,null,null,"注）機械式継手および重ね継手においては長さ、サイズ制限をしております。"]
["採取年月日",null,null,null,null,"2024-01-01",null,null,null,null,null,null,null,null,null,null,null,null,null,null,null,null,null,null,null,null,null,null,null,null,"　　ご依頼の際にはお電話にてご確認ください。"]
["抜き取り位置",null,null,null,null,"基礎・地中梁",null,null,null,null,null,null,null,null,null,null,null,null,null,null,null,null,null,null,null,null,null,null,null,null,"※年月日は西暦表示(yyyy/mm/dd)でお願いします。"]
["指定事項",null,null,null,null,"―"]
["立会いの有無",null,null,null,null,"無",null,null,null,null,null,null,null,null,null,null,null,null,null,null,null,null,null,null,null,null,null,null,null,null,"※立会い時間は午後から予約制となります。TELにてご予約ください。"]
["試料返却の有無",null,null,null,null,"無 試験場で処分"]
[]
["※依頼者記入事項を入力後印刷を行うと、QRコードが追加さた依頼書が印刷されます。"]
["※記入漏れのないようお願い致します。",null,null,null,null,null,null,null,null,null,null,null,null,null,null,null,null,null,null,null,null,null,null,null,null,null,null,null,null,null," ",null,"　※「ファイル」からも印刷可能ですが、\nその際は、「ページ設定」にて余白の調整を\nお願いいたします。\n"]
["※依頼者申請事項を含め、試験で得られた結果は機密情報として取扱い致します。"]
["【試験場記入欄】"]
["依頼者との協議事項",null,null,null,null,null,null,null,null,null,null,null,null,null,null,null,null,null,null,null,null,null,null,null,null,null,null,null,null,null,"※依頼者記入欄を入力後「印刷フォーム」\n　　　　　　から印刷を行うとQRコード付き依頼書が印刷されます。"]
[]
[]
[]
[null,null,null,null,null,null,null,null,null,null,null,null,null,null,null,null,null,null,null,null,null,null,null,null,null,null,null,null,null,null,{"$f":"IF(OR(F17=\"D10\",F17=\"D13\",F17=\"D16\",F17=\"D19\",F17=\"D22\",F17=\"D25\",F17=\"D29\"),H17,\"\")","v":0},{"$f":"IF(OR(K17=\"D10\",K17=\"D13\",K17=\"D16\",K17=\"D19\",K17=\"D22\",K17=\"D25\",K17=\"D29\"),M17,\"\")","v":""},{"$f":"IF(OR(P17=\"D10\",P17=\"D13\",P17=\"D16\",P17=\"D19\",P17=\"D22\",P17=\"D25\",P17=\"D29\"),R17,\"\")","v":""},{"$f":"IF(OR(U17=\"D10\",U17=\"D13\",U17=\"D16\",U17=\"D19\",U17=\"D22\",U17=\"D25\",U17=\"D29\"),W17,\"\")","v":""}]
[null,null,null,null,null,null,null,null,null,null,null,null,null,null,null,null,null,null,null,null,null,"受付者",null,null,null,"技術管理者",null,null,null,null,{"$f":"IF(OR(F17=\"D32\",F17=\"D35\",F17=\"D38\"),H17,\"\")","v":""},{"$f":"IF(OR(K17=\"D32\",K17=\"D35\",K17=\"D38\"),M17,\"\")","v":""},{"$f":"IF(OR(P17=\"D32\",P17=\"D35\",P17=\"D38\"),R17,\"\")","v":""},{"$f":"IF(OR(U17=\"D32\",U17=\"D35\",U17=\"D38\"),W17,\"\")","v":""}]
["試験料金"]
[]
[]
[null,null,null,null,null,null,null,null,null,null,null,null,null,null,null,null,null,null,null,null,null," "]

{"sheet":"鉄筋引張 (2)","index":1,"n_rows":39,"n_cols":39,"rows_kept":39,"cut":false,"hidden":false,"merged":[[34,21,34,24],[34,25,34,28],[35,0,35,4],[35,5,35,13],[35,21,35,24],[35,25,35,28],[25,20,32,28],[26,32,28,35],[29,0,32,4],[29,5,29,19],[29,30,30,37],[30,5,30,19],[31,5,31,19],[32,5,32,19],[22,0,22,4],[22,5,22,11],[22,12,22,28],[23,0,23,4],[23,5,23,11],[24,0,24,4],[24,5,24,11],[24,12,24,28],[18,25,18,26],[19,0,19,4],[19,5,19,28],[20,0,20,4],[20,5,20,28],[21,0,21,4],[21,5,21,28],[16,17,16,18],[16,20,16,21],[16,22,16,23],[16,25,16,28],[17,5,17,28],[18,0,18,4],[18,5,18,12],[18,13,18,16],[18,17,18,18],[18,21,18,24],[15,0,15,4],[15,5,15,16],[15,17,15,28],[15,30,16,38],[16,0,17,4],[16,5,16,6],[16,7,16,8],[16,10,16,11],[16,12,16,13],[16,15,16,16],[11,30,11,33],[12,0,12,4],[12,5,12,28],[13,0,13,4],[13,5,13,28],[14,0,14,4],[14,5,14,16],[14,17,14,28],[14,30,14,35],[10,2,10,4],[10,5,10,6],[10,7,10,12],[10,13,10,14],[10,15,10,20],[11,2,11,4],[11,5,11,28],[4,0,4,16],[6,0,11,1],[6,2,7,4],[6,6,6,9],[6,18,6,28],[7,5,7,28],[8,2,8,4],[8,5,8,28],[9,2,9,4],[9,5,9,28],[1,0,1,17],[1,18,1,22],[1,23,1,24],[1,25,1,28],[2,18,2,22],[2,23,2,28]]}
[null,null,null,null,null,null,null,null,null,null,null,null,null,null,null,null,null,null,null,null,null,null,null,null,null,null,null,null,null,null,null,null,null,null,null,null,null,null,"000-0000\r\n福井県○○市○○町1-1-1\r\n○○工業株式会社\r\n○○　○○\r\n0000-00-0000\r\n0000-00-0000\r\n○○工業株式会社\r\n○○建設　新築工事\r\n福井市○○町○○－○○\r\n鉄筋のガス圧接継手\r\nSD345\r\nD25\r\n\r\n-\r\n\r\n-\r\n\r\n-\r\n\r\n2024/01/01\r\n基礎・地中梁\r\n―\r\n無\r\n無\r\n"]
["金属材料引張試験依頼書",null,null,null,null,null,null,null,null,null,null,null,null,null,null,null,null,null,"受 付 番 号"]
[null,null,null,null,null,null,null,null,null,null,null,null,null,null,null,null,null,null,"受領日"]
[]
["福井県生コンクリート工業組合　中央試験場　　御中"]
["【依頼者記入欄】"]
["依頼者",null,"住所",null,null,"〒","000-0000",null,null,null,null,null,null,null,null,null,null,null,null,null,null,null,null,null,null,null,null,null,null,null,null,null,null,"　"]
[null,null,null,null,null,"福井県○○市○○町1-1-1",null,null,null,null,null,null,null,null,null,null,null,null,null,null,null,null,null,null,null,null,null,null,null,null,"※依頼書の作成方法"]
[null,null,"会社名",null,null,"○○工業株式会社",null,null,null,null,null,null,null,null,null,null,null,null,null,null,null,null,null,null,null,null,null,null,null,null,"この依頼書はマクロを使用しています。「マクロを有効」にしてください。"]
[null,null,"担当者",null,null,"○○　○○",null,null,null,null,null,null,null,null,null,null,null,null,null,null,null,null,null,null,null,null,null,null,null,null,"※（「マクロの有効」ファイル(HPよりDL)をご参考にしてください）"]
[null,null,"連絡先",null,null,"℡",null,"0000-00-0000",null,null,null,null,null,"fax",null,"0000-00-0000",null,null,null,null,null,null,null,null,null,null,null,null,null,null,"注）セル及び行列の追加削除及び移動は行わないでください。"]
[null,null,"請求先",null,null,"○○工業株式会社",null,null,null,null,null,null,null,null,null,null,null,null,null,null,null,null,null,null,null,null,null,null,null,null,"依頼書内の白枠セルへ入力してください。\n入力漏れの無いようお願いします。\n"]
["工事名",null,null,null,null,"○○建設　新築工事"]
["工事場所",null,null,null,null,"福井市○○町○○－○○",null,null,null,null,null,null,null,null,null,null,null,null,null,null,null,null,null,null,null,null,null,null,null,null,"※該当しない項目または無記入欄は、「―」にしてください。"]
["試験項目",null,null,null,null,"鉄筋のガス圧接継手",null,null,null,null,null,null,null,null,null,null,null,"引張試験方法　",null,null,null,null,null,null,null,null,null,null,null,null,"　　　リストから選択してください。直接入力もできます。"]
["鉄筋の種類",null,null,null,null,"SD345",null,null,null,null,null,null,null,null,null,null,null,{"$f":"IF(F16=\"SD490\",\"※SD490はD32までとなります\",\"\")","v":""},null,null,null,null,null,null,null,null,null,null,null,null,"※鉄筋の種類は1種類を選択してください。複数の場合は依頼書を追加していただきます。\n（鉄筋径が異なる鉄筋間の継手は、鉄筋径の差が７㎜までです。その際は「D19+D25]\nと依頼書を作成してください。）"]
["試料名及び数量",null,null,null,null,"D22",null,null,null,"本","-",null,null,null,"本","-",null,null,null,"本","-",null,null,null,"本",{"$f":"IF((H17+M17+R17+W17>9),\"9本までです\",\"\")","v":""}]
[null,null,null,null,null,"※サイズはD38まで試験可能です。試料数は依頼書/1枚につき合計９本までとなります",null,null,null,null,null,null,null,null,null,null,null,null,null,null,null,null,null,null,null,null,null,null,null,null,"※試料は、継手をセンターにし全長500～1000mmに加工しお持ちください。"]
["試験方法",null,null,null,null,"JIS Z 2241：2022",null,null,null,null,null,null,null,"(080C01)",null,null,null,{"$f":"SUM(AE34:AH34)","v":0},null,null,null,"(080C02)",null,null,null,{"$f":"SUM(AE35:AH35)","v":0},null,null,null,null,"注）機械式継手および重ね継手においては長さ、サイズ制限をしております。"]
["採取年月日",null,null,null,null,"2024-01-01",null,null,null,null,null,null,null,null,null,null,null,null,null,null,null,null,null,null,null,null,null,null,null,null,"　　ご依頼の際にはお電話にてご確認ください。"]
["抜き取り位置",null,null,null,null,"基礎・地中梁",null,null,null,null,null,null,null,null,null,null,null,null,null,null,null,null,null,null,null,null,null,null,null,null,"※年月日は西暦表示(yyyy/mm/dd)でお願いします。"]
["指定事項",null,null,null,null,"―"]
["立会いの有無",null,null,null,null,"無",null,null,null,null,null,null,null,null,null,null,null,null,null,null,null,null,null,null,null,null,null,null,null,null,"※立会い時間は午後から予約制となります。TELにてご予約ください。"]
["試料返却の有無",null,null,null,null,"無 試験場で処分"]
[]
["※依頼者記入事項を入力後印刷を行うと、QRコードが追加さた依頼書が印刷されます。"]
["※記入漏れのないようお願い致します。",null,null,null,null,null,null,null,null,null,null,null,null,null,null,null,null,null,null,null,null,null,null,null,null,null,null,null,null,null," ",null,"　※「ファイル」からも印刷可能ですが、\nその際は、「ページ設定」にて余白の調整を\nお願いいたします。\n"]
["※依頼者申請事項を含め、試験で得られた結果は機密情報として取扱い致します。"]
["【試験場記入欄】"]
["依頼者との協議事項",null,null,null,null,null,null,null,null,null,null,null,null,null,null,null,null,null,null,null,null,null,null,null,null,null,null,null,null,null,"※依頼者記入欄を入力後「印刷フォーム」\n　　　　　　から印刷を行うとQRコード付き依頼書が印刷されます。"]
[]
[]
[]
[null,null,null,null,null,null,null,null,null,null,null,null,null,null,null,null,null,null,null,null,null,null,null,null,null,null,null,null,null,null,{"$f":"IF(OR(F17=\"D10\",F17=\"D13\",F17=\"D16\",F17=\"D19\",F17=\"D22\",F17=\"D25\",F17=\"D29\"),H17,\"\")","v":0},{"$f":"IF(OR(K17=\"D10\",K17=\"D13\",K17=\"D16\",K17=\"D19\",K17=\"D22\",K17=\"D25\",K17=\"D29\"),M17,\"\")","v":""},{"$f":"IF(OR(P17=\"D10\",P17=\"D13\",P17=\"D16\",P17=\"D19\",P17=\"D22\",P17=\"D25\",P17=\"D29\"),R17,\"\")","v":""},{"$f":"IF(OR(U17=\"D10\",U17=\"D13\",U17=\"D16\",U17=\"D19\",U17=\"D22\",U17=\"D25\",U17=\"D29\"),W17,\"\")","v":""}]
[null,null,null,null,null,null,null,null,null,null,null,null,null,null,null,null,null,null,null,null,null,"受付者",null,null,null,"技術管理者",null,null,null,null,{"$f":"IF(OR(F17=\"D32\",F17=\"D35\",F17=\"D38\"),H17,\"\")","v":""},{"$f":"IF(OR(K17=\"D32\",K17=\"D35\",K17=\"D38\"),M17,\"\")","v":""},{"$f":"IF(OR(P17=\"D32\",P17=\"D35\",P17=\"D38\"),R17,\"\")","v":""},{"$f":"IF(OR(U17=\"D32\",U17=\"D35\",U17=\"D38\"),W17,\"\")","v":""}]
["試験料金"]
[]
[]
[null,null,null,null,null,null,null,null,null,null,null,null,null,null,null,null,null,null,null,null,null," "]

{"sheet":"鉄筋引張 (3)","index":2,"n_rows":39,"n_cols":39,"rows_kept":39,"cut":false,"hidden":false,"merged":[[34,21,34,24],[34,25,34,28],[35,0,35,4],[35,5,35,13],[35,21,35,24],[35,25,35,28],[25,20,32,28],[26,32,28,35],[29,0,32,4],[29,5,29,19],[29,30,30,37],[30,5,30,19],[31,5,31,19],[32,5,32,19],[22,0,22,4],[22,5,22,11],[22,12,22,28],[23,0,23,4],[23,5,23,11],[24,0,24,4],[24,5,24,11],[24,12,24,28],[18,25,18,26],[19,0,19,4],[19,5,19,28],[20,0,20,4],[20,5,20,28],[21,0,21,4],[21,5,21,28],[16,17,16,18],[16,20,16,21],[16,22,16,23],[16,25,16,28],[17,5,17,28],[18,0,18,4],[18,5,18,12],[18,13,18,16],[18,17,18,18],[18,21,18,24],[15,0,15,4],[15,5,15,16],[15,17,15,28],[15,30,16,38],[16,0,17,4],[16,5,16,6],[16,7,16,8],[16,10,16,11],[16,12,16,13],[16,15,16,16],[11,30,11,33],[12,0,12,4],[12,5,12,28],[13,0,13,4],[13,5,13,28],[14,0,14,4],[14,5,14,16],[14,17,14,28],[14,30,14,35],[10,2,10,4],[10,5,10,6],[10,7,10,12],[10,13,10,14],[10,15,10,20],[11,2,11,4],[11,5,11,28],[4,0,4,16],[6,0,11,1],[6,2,7,4],[6,6,6,9],[6,18,6,28],[7,5,7,28],[8,2,8,4],[8,5,8,28],[9,2,9,4],[9,5,9,28],[1,0,1,17],[1,18,1,22],[1,23,1,24],[1,25,1,28],[2,18,2,22],[2,23,2,28]]}
[null,null,null,null,null,null,null,null,null,null,null,null,null,null,null,null,null,null,null,null,null,null,null,null,null,null,null,null,null,null,null,null,null,null,null,null,null,null,"000-0000\r\n福井県○○市○○町1-1-1\r\n○○工業株式会社\r\n○○　○○\r\n0000-00-0000\r\n0000-00-0000\r\n○○工業株式会社\r\n○○建設　新築工事\r\n福井市○○町○○－○○\r\n鉄筋のガス圧接継手\r\nSD345\r\nD25\r\n\r\n-\r\n\r\n-\r\n\r\n-\r\n\r\n2024/01/01\r\n基礎・地中梁\r\n―\r\n無\r\n無\r\n"]
["金属材料引張試験依頼書",null,null,null,null,null,null,null,null,null,null,null,null,null,null,null,null,null,"受 付 番 号"]
[null,null,null,null,null,null,null,null,null,null,null,null,null,null,null,null,null,null,"受領日"]
[]
["福井県生コンクリート工業組合　中央試験場　　御中"]
["【依頼者記入欄】"]
["依頼者",null,"住所",null,null,"〒","000-0000",null,null,null,null,null,null,null,null,null,null,null,null,null,null,null,null,null,null,null,null,null,null,null,null,null,null,"　"]
[null,null,null,null,null,"福井県○○市○○町1-1-1",null,null,null,null,null,null,null,null,null,null,null,null,null,null,null,null,null,null,null,null,null,null,null,null,"※依頼書の作成方法"]
[null,null,"会社名",null,null,"○○工業株式会社",null,null,null,null,null,null,null,null,null,null,null,null,null,null,null,null,null,null,null,null,null,null,null,null,"この依頼書はマクロを使用しています。「マクロを有効」にしてください。"]
[null,null,"担当者",null,null,"○○　○○",null,null,null,null,null,null,null,null,null,null,null,null,null,null,null,null,null,null,null,null,null,null,null,null,"※（「マクロの有効」ファイル(HPよりDL)をご参考にしてください）"]
[null,null,"連絡先",null,null,"℡",null,"0000-00-0000",null,null,null,null,null,"fax",null,"0000-00-0000",null,null,null,null,null,null,null,null,null,null,null,null,null,null,"注）セル及び行列の追加削除及び移動は行わないでください。"]
[null,null,"請求先",null,null,"○○工業株式会社",null,null,null,null,null,null,null,null,null,null,null,null,null,null,null,null,null,null,null,null,null,null,null,null,"依頼書内の白枠セルへ入力してください。\n入力漏れの無いようお願いします。\n"]
["工事名",null,null,null,null,"○○建設　新築工事"]
["工事場所",null,null,null,null,"福井市○○町○○－○○",null,null,null,null,null,null,null,null,null,null,null,null,null,null,null,null,null,null,null,null,null,null,null,null,"※該当しない項目または無記入欄は、「―」にしてください。"]
["試験項目",null,null,null,null,"鉄筋のガス圧接継手",null,null,null,null,null,null,null,null,null,null,null,"引張試験方法　",null,null,null,null,null,null,null,null,null,null,null,null,"　　　リストから選択してください。直接入力もできます。"]
["鉄筋の種類",null,null,null,null,"SD345",null,null,null,null,null,null,null,null,null,null,null,{"$f":"IF(F16=\"SD490\",\"※SD490はD32までとなります\",\"\")","v":""},null,null,null,null,null,null,null,null,null,null,null,null,"※鉄筋の種類は1種類を選択してください。複数の場合は依頼書を追加していただきます。\n（鉄筋径が異なる鉄筋間の継手は、鉄筋径の差が７㎜までです。その際は「D19+D25]\nと依頼書を作成してください。）"]
["試料名及び数量",null,null,null,null,"D22",null,null,null,"本","-",null,null,null,"本","-",null,null,null,"本","-",null,null,null,"本",{"$f":"IF((H17+M17+R17+W17>9),\"9本までです\",\"\")","v":""}]
[null,null,null,null,null,"※サイズはD38まで試験可能です。試料数は依頼書/1枚につき合計９本までとなります",null,null,null,null,null,null,null,null,null,null,null,null,null,null,null,null,null,null,null,null,null,null,null,null,"※試料は、継手をセンターにし全長500～1000mmに加工しお持ちください。"]
["試験方法",null,null,null,null,"JIS Z 2241：2022",null,null,null,null,null,null,null,"(080C01)",null,null,null,{"$f":"SUM(AE34:AH34)","v":0},null,null,null,"(080C02)",null,null,null,{"$f":"SUM(AE35:AH35)","v":0},null,null,null,null,"注）機械式継手および重ね継手においては長さ、サイズ制限をしております。"]
["採取年月日",null,null,null,null,"2024-01-01",null,null,null,null,null,null,null,null,null,null,null,null,null,null,null,null,null,null,null,null,null,null,null,null,"　　ご依頼の際にはお電話にてご確認ください。"]
["抜き取り位置",null,null,null,null,"基礎・地中梁",null,null,null,null,null,null,null,null,null,null,null,null,null,null,null,null,null,null,null,null,null,null,null,null,"※年月日は西暦表示(yyyy/mm/dd)でお願いします。"]
["指定事項",null,null,null,null,"―"]
["立会いの有無",null,null,null,null,"無",null,null,null,null,null,null,null,null,null,null,null,null,null,null,null,null,null,null,null,null,null,null,null,null,"※立会い時間は午後から予約制となります。TELにてご予約ください。"]
["試料返却の有無",null,null,null,null,"無 試験場で処分"]
[]
["※依頼者記入事項を入力後印刷を行うと、QRコードが追加さた依頼書が印刷されます。"]
["※記入漏れのないようお願い致します。",null,null,null,null,null,null,null,null,null,null,null,null,null,null,null,null,null,null,null,null,null,null,null,null,null,null,null,null,null," ",null,"　※「ファイル」からも印刷可能ですが、\nその際は、「ページ設定」にて余白の調整を\nお願いいたします。\n"]
["※依頼者申請事項を含め、試験で得られた結果は機密情報として取扱い致します。"]
["【試験場記入欄】"]
["依頼者との協議事項",null,null,null,null,null,null,null,null,null,null,null,null,null,null,null,null,null,null,null,null,null,null,null,null,null,null,null,null,null,"※依頼者記入欄を入力後「印刷フォーム」\n　　　　　　から印刷を行うとQRコード付き依頼書が印刷されます。"]
[]
[]
[]
[null,null,null,null,null,null,null,null,null,null,null,null,null,null,null,null,null,null,null,null,null,null,null,null,null,null,null,null,null,null,{"$f":"IF(OR(F17=\"D10\",F17=\"D13\",F17=\"D16\",F17=\"D19\",F17=\"D22\",F17=\"D25\",F17=\"D29\"),H17,\"\")","v":0},{"$f":"IF(OR(K17=\"D10\",K17=\"D13\",K17=\"D16\",K17=\"D19\",K17=\"D22\",K17=\"D25\",K17=\"D29\"),M17,\"\")","v":""},{"$f":"IF(OR(P17=\"D10\",P17=\"D13\",P17=\"D16\",P17=\"D19\",P17=\"D22\",P17=\"D25\",P17=\"D29\"),R17,\"\")","v":""},{"$f":"IF(OR(U17=\"D10\",U17=\"D13\",U17=\"D16\",U17=\"D19\",U17=\"D22\",U17=\"D25\",U17=\"D29\"),W17,\"\")","v":""}]
[null,null,null,null,null,null,null,null,null,null,null,null,null,null,null,null,null,null,null,null,null,"受付者",null,null,null,"技術管理者",null,null,null,null,{"$f":"IF(OR(F17=\"D32\",F17=\"D35\",F17=\"D38\"),H17,\"\")","v":""},{"$f":"IF(OR(K17=\"D32\",K17=\"D35\",K17=\"D38\"),M17,\"\")","v":""},{"$f":"IF(OR(P17=\"D32\",P17=\"D35\",P17=\"D38\"),R17,\"\")","v":""},{"$f":"IF(OR(U17=\"D32\",U17=\"D35\",U17=\"D38\"),W17,\"\")","v":""}]
["試験料金"]
[]
[]
[null,null,null,null,null,null,null,null,null,null,null,null,null,null,null,null,null,null,null,null,null," "]